fUST/lending_fUST_20260112
["ID","MTS","AMOUNT","RATE_DAILY","PERIOD"]
[401353631,1768151444549,-1500.0,0.00014368,2]
[401353633,1768151444560,-1500.0,0.00014368,2]
[401353635,1768151444569,-1001.6206004,0.00014368,2]
[401353637,1768151444579,-1500.0,0.00014368,2]
[401353639,1768151444588,-1500.0,0.00014368,2]
[401353641,1768151444597,-1500.0,0.00014368,2]
[401353643,1768151444607,-1498.81892914,0.00014368,2]
[401353645,1768151444617,-502.2053155,0.00014368,2]
[401353647,1768151444631,-1500.0,0.00014368,2]
[401353649,1768151444640,-1500.0,0.00014368,2]
[401353651,1768151444650,-1500.0,0.00014368,2]
[401353653,1768151444659,-168.36851892,0.00014368,2]
[401353655,1768151444668,-331.89845241,0.00014368,2]
[401353657,1768151444677,-1500.0,0.00014368,2]
[401353659,1768151444687,-1500.0,0.00014368,2]
[401353661,1768151444696,-1500.0,0.00014368,2]
[401353663,1768151444705,-1500.0,0.00014368,2]
[401353665,1768151444714,-1500.0,0.00014368,2]
[401353667,1768151444723,-1500.0,0.00014368,2]
[401353669,1768151444732,-1500.0,0.00014368,2]
[401353670,1768151444741,-506.27641738,0.00014368,2]
[401353673,1768151444752,-1001.21467235,0.00014368,2]
[401353675,1768151444761,-151.0,0.000145,2]
[401353676,1768151444770,-5000.0,0.0001451,2]
[401353678,1768151444780,-390.95018673,0.00014684,2]
[401353680,1768151444789,-317.81099437,0.00014686,2]
[401353682,1768151444798,-2048.49,0.000147,2]
[401353684,1768151444807,-1000.0,0.00014748,2]
[401353686,1768151444816,-791.0,0.00014748,2]
[401353688,1768151444825,-900.0,0.00014768,2]
[401353690,1768151444834,-470.22693033,0.00014795,2]
[401353692,1768151444843,-502.38932755,0.00014795,2]
[401353694,1768151444852,-161.478767,0.00014795,2]
[401353696,1768151444861,-1102.53259662,0.00014795,2]
[401353698,1768151444870,-1499.24471264,0.00014795,2]
[401353700,1768151444879,-1500.0,0.00014795,2]
[401353702,1768151444888,-1500.0,0.00014795,2]
[401353704,1768151444897,-1002.56553603,0.00014795,2]
[401353706,1768151444907,-1500.0,0.00014795,2]
[401353708,1768151444918,-1500.0,0.00014795,2]
[401353710,1768151444927,-1500.0,0.00014795,2]
[401353712,1768151444937,-1163.68911449,0.00014795,2]
[401353714,1768151444946,-1500.0,0.00014795,2]
[401353716,1768151444955,-1500.0,0.00014795,2]
[401353718,1768151444964,-1001.33075681,0.00014795,2]
[401353720,1768151444973,-1500.0,0.00014795,2]
[401353722,1768151444982,-1500.0,0.00014795,2]
[401353724,1768151444991,-1500.0,0.00014795,2]
[401353726,1768151445000,-429.70423336,0.00014795,2]
[401353728,1768151445009,-1500.0,0.00014795,2]
[401353730,1768151445018,-1500.0,0.00014795,2]
[401353732,1768151445027,-375.35271766,0.00014795,2]
[401353734,1768151445035,-1500.0,0.00014795,2]
[401353736,1768151445045,-1500.0,0.00014795,2]
[401353738,1768151445055,-1500.0,0.00014795,2]
[401353740,1768151445064,-488.64589349,0.00014795,2]
[401353742,1768151445073,-500.0,0.00014795,2]
[401353744,1768151445082,-1500.0,0.00014795,2]
[401353746,1768151445091,-1500.0,0.00014795,2]
[401353748,1768151445100,-1500.0,0.00014795,2]
[401353750,1768151445110,-1500.0,0.00014795,2]
[401353752,1768151445120,-1500.0,0.00014795,2]
[401353754,1768151445129,-1500.0,0.00014795,2]
[401353756,1768151445138,-1500.0,0.00014795,2]
[401353758,1768151445147,-1288.05151213,0.00014795,2]
[401353760,1768151445157,-1500.0,0.00014795,2]
[401353762,1768151445167,-1500.0,0.00014795,2]
[401353764,1768151445180,-1000.0,0.00014795,2]
[401353766,1768151445189,-1500.0,0.00014795,2]
[401353768,1768151445198,-1304.84096496,0.00014795,2]
[401353770,1768151445207,-1500.0,0.00014795,2]
[401353772,1768151445217,-1500.0,0.00014795,2]
[401353774,1768151445226,-1509.97698878,0.00014795,2]
[401353776,1768151445236,-210.18768542,0.00014795,2]
[401353778,1768151445247,-1500.0,0.00014795,2]
[401353780,1768151445256,-1500.0,0.00014795,2]
[401353782,1768151445265,-100000.0,0.00014882,2]
[401353784,1768151445275,-1985.3091038,0.00014916,2]
[401353786,1768151445284,-2000.0,0.00014916,2]
[401353788,1768151445294,-2000.0,0.00014916,2]
[401353790,1768151445304,-2000.0,0.00014916,2]
[401353792,1768151445314,-500.0,0.00014916,2]
[401353794,1768151445323,-2000.0,0.00014916,2]
[401353796,1768151445333,-1559.27372905,0.00014916,2]
[401353798,1768151445343,-554.02767991,0.00014916,2]
[401353800,1768151445353,-651.39515074,0.00014916,2]
[401353802,1768151445363,-2000.0,0.00014916,2]
[401353804,1768151445373,-1103.18109463,0.00014916,2]
[401353806,1768151445382,-2000.0,0.00014916,2]
[401353808,1768151445392,-2000.0,0.00014916,2]
[401353811,1768151445403,-2000.0,0.00014916,2]
[401353813,1768151445415,-2000.0,0.00014916,2]
[401353815,1768151445425,-2000.0,0.00014916,2]
[401353817,1768151445435,-995.14442511,0.00014916,2]
[401353819,1768151445445,-2000.0,0.00014916,2]
[401353821,1768151445454,-513.35365922,0.00014916,2]
[401353823,1768151445463,-2000.0,0.00014916,2]
[401353824,1768151445472,-263.96834089,0.00014916,2]
[401353826,1768151445482,-2000.0,0.00014916,2]
[401353829,1768151445492,-2000.0,0.00014916,2]
[401353831,1768151445502,-223.48736773,0.00014916,2]
[401353832,1768151445511,-2000.0,0.00014916,2]
[401353834,1768151445520,-2000.0,0.00014916,2]
[401353836,1768151445530,-2000.0,0.00014916,2]
[401353838,1768151445539,-1613.36442406,0.00014916,2]
[401353840,1768151445548,-2000.0,0.00014916,2]
[401353842,1768151445557,-1000.0,0.00015,2]
[401353844,1768151445567,-770.339112,0.00015068,2]
[401353846,1768151445577,-800.0,0.00015068,2]
[401353848,1768151445586,-10000.0,0.00015242,2]
[401353850,1768151445595,-7973.01485186,0.00015249,2]
[401353852,1768151445604,-2048.49,0.000153,2]
[401353854,1768151445613,-1200.0,0.00015316,2]
[401353856,1768151445622,-2000.0,0.00015342,2]
[401353858,1768151445631,-2000.0,0.00015342,2]
[401353860,1768151445640,-2000.0,0.00015342,2]
[401353862,1768151445650,-1204.73550321,0.00015342,2]
[401353864,1768151445659,-1000.0,0.00015342,2]
[401353866,1768151445669,-500.79965419,0.00015342,2]
[401353868,1768151445678,-2000.0,0.00015342,2]
[401353870,1768151445688,-2000.0,0.00015342,2]
[401353873,1768151445698,-1174.14847626,0.00015342,2]
[401353874,1768151445708,-2000.0,0.00015342,2]
[401353876,1768151445717,-1002.98816345,0.00015342,2]
[401353878,1768151445726,-1236.28209818,0.00015342,2]
[401353880,1768151445735,-1015.29707634,0.00015342,2]
[401353883,1768151445745,-1157.07022264,0.00015342,2]
[401353884,1768151445754,-1839.58703801,0.00015342,2]
[401353886,1768151445763,-976.33364724,0.00015342,2]
[401353888,1768151445772,-2000.0,0.00015342,2]
[401353890,1768151445782,-1025.59078617,0.00015342,2]
[401353893,1768151445792,-2000.0,0.00015342,2]
[401353896,1768151445801,-2000.0,0.00015342,2]
[401353897,1768151445810,-2000.0,0.00015342,2]
[401353899,1768151445819,-2000.0,0.00015342,2]
[401353901,1768151445828,-2000.0,0.00015342,2]
[401353903,1768151445837,-2000.0,0.00015342,2]
[401353905,1768151445846,-482.84709438,0.00015342,2]
[401353907,1768151445855,-2000.0,0.00015342,2]
[401353909,1768151445865,-516.76085072,0.00015342,2]
[401353911,1768151445873,-804.72135436,0.00015342,2]
[401353913,1768151445883,-507.57819343,0.00015342,2]
[401353915,1768151445891,-1271.24397748,0.00015378,2]
[401353917,1768151445900,-465.81779273,0.00015464,2]
[401353919,1768151445909,-304.14307857,0.00015464,2]
[401353921,1768151445918,-670.16316784,0.00015464,2]
[401353923,1768151445928,-1281.06836301,0.00015464,2]
[401353925,1768151445938,-2500.0,0.00015464,2]
[401353927,1768151445947,-2500.0,0.00015464,2]
[401353929,1768151445956,-1374.68815725,0.00015464,2]
[401353931,1768151445965,-2500.0,0.00015464,2]
[401353933,1768151445974,-1055.48898116,0.00015464,2]
[401353935,1768151445984,-2500.0,0.00015464,2]
[401353937,1768151445993,-2500.0,0.00015464,2]
[401353939,1768151446003,-2500.0,0.00015464,2]
[401353941,1768151446012,-2500.0,0.00015464,2]
[401353943,1768151446022,-2500.0,0.00015464,2]
[401353946,1768151446041,-2500.0,0.00015464,2]
[401353948,1768151446051,-2500.0,0.00015464,2]
[401353949,1768151446063,-2500.0,0.00015464,2]
[401353951,1768151446073,-502.33157316,0.00015464,2]
[401353954,1768151446083,-159.57,0.000155,2]
[401353956,1768151446093,-1563.80074693,0.00015546,2]
[401353957,1768151446102,-3862.33347776,0.00015546,2]
[401353959,1768151446112,-3162.0,0.00015704,2]
[401353961,1768151446122,-2048.49,0.000158,2]
[401353963,1768151446131,-1500.0,0.00015864,2]
[401353965,1768151446141,-1643.18421046,0.0001589,2]
[401353979,1768151446266,-1140.95571878,0.0001589,2]
[401353981,1768151446276,-2500.0,0.0001589,2]
[401353983,1768151446285,-2500.0,0.0001589,2]
[401353985,1768151446294,-589.88646751,0.0001589,2]
[401353987,1768151446304,-1097.05305078,0.0001589,2]
[401353989,1768151446313,-2500.0,0.0001589,2]
[401353991,1768151446323,-2500.0,0.0001589,2]
[401353993,1768151446332,-2500.0,0.0001589,2]
[401353995,1768151446342,-504.51727604,0.0001589,2]
[401353997,1768151446351,-926.89565163,0.0001589,2]
[401353999,1768151446361,-746.08427355,0.0001589,2]
[401354001,1768151446370,-2500.0,0.0001589,2]
[401354003,1768151446379,-2500.0,0.0001589,2]
[401354005,1768151446388,-8476.65007156,0.0001591,2]
[401354007,1768151446398,-3000.0,0.00016,2]
[401354009,1768151446407,-9009.0,0.00016,2]
[401354011,1768151446416,-154502.517058,0.00016,2]
[401354013,1768151446426,-3000.0,0.0001601,2]
[401354015,1768151446436,-3000.0,0.00016012,2]
[401354017,1768151446445,-466.62413338,0.00016012,2]
[401354019,1768151446455,-3000.0,0.00016012,2]
[401354021,1768151446464,-3000.0,0.00016012,2]
[401354023,1768151446474,-2506.66545063,0.00016012,2]
[401354025,1768151446484,-3000.0,0.00016012,2]
[401354027,1768151446493,-3000.0,0.00016012,2]
[401354029,1768151446503,-2397.40421659,0.00016012,2]
[401354031,1768151446512,-3000.0,0.00016012,2]
[401354033,1768151446521,-3000.0,0.00016012,2]
[401354035,1768151446530,-3000.0,0.00016012,2]
[401354037,1768151446539,-3000.0,0.0001602,2]
[401354039,1768151446548,-8695.84915345,0.00016024,2]
[401354041,1768151446556,-3000.0,0.0001603,2]
[401354043,1768151446565,-3000.0,0.0001604,2]
[401354045,1768151446575,-3000.0,0.0001605,2]
[401354047,1768151446584,-3000.0,0.0001606,2]
[401354049,1768151446594,-3000.0,0.0001607,2]
[401354051,1768151446603,-2860.29894933,0.0001607,2]
[401354053,1768151446613,-3000.0,0.0001608,2]
[401354054,1768151446623,-3000.0,0.0001609,2]
[401354057,1768151446633,-3000.0,0.000161,2]
[401354058,1768151446642,-3000.0,0.0001611,2]
[401354060,1768151446651,-672.67126359,0.00016115,2]
[401354062,1768151446660,-3000.0,0.0001612,2]
[401354064,1768151446669,-3000.0,0.0001613,2]
[401354066,1768151446680,-3000.0,0.0001614,2]
[401354068,1768151446691,-3000.0,0.0001615,2]
[401354071,1768151446700,-3000.0,0.0001616,2]
[401354073,1768151446710,-1600.0,0.00016164,2]
[401354075,1768151446719,-3000.0,0.0001617,2]
[401354077,1768151446729,-3000.0,0.0001618,2]
[401354079,1768151446739,-3000.0,0.0001619,2]
[401354081,1768151446748,-3000.0,0.000162,2]
[401354083,1768151446757,-3000.0,0.0001621,2]
[401354085,1768151446766,-4548.101105,0.0001622,2]
[401354087,1768151446775,-1000.0,0.00016223,2]
[401354089,1768151446784,-1000.0,0.00016223,2]
[401354091,1768151446793,-2048.49,0.000163,2]
[401354093,1768151446802,-14210.64589662,0.00016345,2]
[401354095,1768151446812,-3518.55168059,0.00016407,2]
[401354097,1768151446820,-1800.0,0.00016412,2]
[401354099,1768151446829,-500.0,0.00016438,2]
[401354100,1768151446838,-500.0,0.00016438,2]
[401354102,1768151446848,-247.44098876,0.00016438,2]
[401354104,1768151446857,-500.0,0.00016438,2]
[401354106,1768151446866,-500.0,0.00016438,2]
[401354108,1768151446875,-500.0,0.00016438,2]
[401354110,1768151446884,-500.0,0.00016438,2]
[401354112,1768151446894,-500.0,0.00016438,2]
[401354114,1768151446904,-500.0,0.00016438,2]
[401354116,1768151446913,-623.20869213,0.00016438,2]
[401354118,1768151446923,-500.0,0.00016438,2]
[401354120,1768151446933,-500.0,0.00016438,2]
[401354122,1768151446942,-500.0,0.00016438,2]
[401354124,1768151446952,-164.19129262,0.00016438,2]
[401354126,1768151446960,-3000.0,0.00016438,2]
[401354128,1768151446969,-3000.0,0.00016438,2]
[401354130,1768151446979,-3000.0,0.00016438,2]
[401354132,1768151446988,-3000.0,0.00016438,2]
[401354134,1768151446998,-3000.0,0.00016438,2]
[401354136,1768151447008,-3000.0,0.00016438,2]
[401354138,1768151447017,-1134.65901332,0.00016438,2]
[401354140,1768151447027,-260.15865923,0.00016438,2]
[401354142,1768151447036,-200.0,0.00016473,2]
[401354144,1768151447046,-3500.0,0.0001656,2]
[401354146,1768151447055,-3500.0,0.0001656,2]
[401354148,1768151447064,-3500.0,0.0001656,2]
[401354150,1768151447074,-3500.0,0.0001656,2]
[401354152,1768151447084,-3500.0,0.0001656,2]
[401354154,1768151447093,-3500.0,0.0001656,2]
[401354157,1768151447103,-3500.0,0.0001656,2]
[401354159,1768151447113,-3500.0,0.0001656,2]
[401354160,1768151447122,-5084.97590993,0.00016763,2]
[401354162,1768151447131,-2048.49,0.000168,2]
[401354164,1768151447140,-643.73891296,0.00016917,8]
[401354166,1768151447151,-2100.0,0.0001696,2]
[401354169,1768151447160,-1502.60955562,0.00016986,2]
[401354170,1768151447171,-1052.92932298,0.00016986,2]
[401354172,1768151447182,-3500.0,0.00016986,2]
[401354174,1768151447192,-3500.0,0.00016986,2]
[401354177,1768151447201,-3500.0,0.00016986,2]
[401354179,1768151447211,-3500.0,0.00016986,2]
[401354181,1768151447220,-4000.0,0.00017108,2]
[401354182,1768151447229,-4000.0,0.00017108,2]
[401354185,1768151447239,-4000.0,0.00017108,2]
[401354187,1768151447251,-4000.0,0.00017108,2]
[401354189,1768151447260,-4000.0,0.00017108,2]
[401354191,1768151447269,-4000.0,0.00017108,2]
[401354192,1768151447278,-4000.0,0.00017108,2]
[401354194,1768151447287,-4000.0,0.00017108,2]
[401354196,1768151447296,-171.46,0.00017122,2]
[401354198,1768151447305,-1901.71937705,0.0001726,2]
[401354200,1768151447315,-6255.20298771,0.00017268,2]
[401354202,1768151447324,-1761.0,0.00017275,2]
[401354204,1768151447334,-2048.49,0.000173,2]
[401354206,1768151447343,-5000.0,0.00017412,2]
[401354208,1768151447353,-7945.27485926,0.00017456,2]
[401354210,1768151447362,-2400.0,0.00017508,2]
[401354212,1768151447372,-2578.16970935,0.00017534,2]
[401354214,1768151447381,-4000.0,0.00017534,2]
[401354216,1768151447392,-4000.0,0.00017534,2]
[401354218,1768151447402,-4000.0,0.00017534,2]
[401354220,1768151447411,-159.57,0.000176,2]
[401354222,1768151447421,-4500.0,0.00017656,2]
[401354224,1768151447431,-4500.0,0.00017656,2]
[401354226,1768151447440,-1020.77887688,0.00017656,2]
[401354228,1768151447450,-2878.46600243,0.00017656,2]
[401354230,1768151447459,-2000.0,0.00017656,2]
[401354232,1768151447468,-4500.0,0.00017656,2]
[401354234,1768151447477,-4500.0,0.00017656,2]
[401354236,1768151447487,-4500.0,0.00017656,2]
[401354238,1768151447496,-2048.49,0.000178,2]
[401354240,1768151447506,-400.0,0.00017842,2]
[401354241,1768151447515,-1000.0,0.00017845,2]
[401354243,1768151447524,-1000.0,0.00017845,2]
[401354245,1768151447534,-579.0,0.00017845,2]
[401354247,1768151447545,-1344.72420012,0.00018056,2]
[401354249,1768151447555,-4500.0,0.00018082,2]
[401354251,1768151447564,-4500.0,0.00018082,2]
[401354253,1768151447574,-4500.0,0.00018082,2]
[401354255,1768151447583,-743.0670935,0.00018115,2]
[401354257,1768151447593,-11441.19579733,0.00018149,2]
[401354259,1768151447602,-5000.0,0.00018204,2]
[401354261,1768151447611,-5142.48470631,0.00018204,2]
[401354263,1768151447620,-5000.0,0.00018204,2]
[401354265,1768151447631,-5000.0,0.00018204,2]
[401354267,1768151447640,-1988.31906632,0.00018204,2]
[401354269,1768151447649,-8476.65007153,0.0001826,2]
[401354271,1768151447658,-643.73891296,0.00018288,9]
[401354273,1768151447667,-2048.49,0.000183,2]
[401354275,1768151447676,-770.339112,0.00018493,2]
[401354277,1768151447685,-5000.0,0.0001863,2]
[401354279,1768151447694,-5000.0,0.0001863,2]
[401354281,1768151447703,-5000.0,0.0001863,2]
[401354283,1768151447713,-5290.76752154,0.00018736,2]
[401354285,1768151447722,-1995.04726907,0.00018752,2]
[401354287,1768151447731,-5500.0,0.00018752,2]
[401354289,1768151447741,-3821.06911742,0.00018752,2]
[401354291,1768151447752,-5000.0,0.00018863,2]
[401354293,1768151447761,-2048.49,0.000189,2]
[401354295,1768151447771,-303.100016,0.000189,2]
[401354297,1768151447780,-303.10001605,0.000189,2]
[401354299,1768151447789,-242.62689371,0.00019178,2]
[401354301,1768151447799,-2918.97723055,0.00019178,2]
[401354303,1768151447807,-5500.0,0.00019178,2]
[401354305,1768151447816,-5500.0,0.00019178,2]
[401354307,1768151447826,-163.23,0.000192,2]
[401354309,1768151447835,-164.06,0.000192,2]
[401354311,1768151447844,-167.63,0.000192,2]
[401354313,1768151447853,-31199.11,0.000192,2]
[401354315,1768151447862,-3180.59,0.000192,2]
[401354317,1768151447871,-171.46,0.00019261,2]
[401354319,1768151447880,-3732.45700431,0.000193,2]
[401354321,1768151447889,-2048.49,0.000194,2]
[401354323,1768151447898,-1000.0,0.0001963,2]
[401354325,1768151447907,-1000.0,0.0001963,2]
[401354326,1768151447916,-1000.0,0.0001963,2]
[401354329,1768151447926,-643.73891296,0.00019658,10]
[401354330,1768151447935,-159.57,0.000197,2]
[401354332,1768151447944,-6000.0,0.00019726,2]
[401354334,1768151447954,-6000.0,0.00019726,2]
[401354336,1768151447963,-2048.49,0.000199,2]
[401354346,1768151448041,-210.71161946,0.0002,2]
[401354348,1768151448058,-813.46292341,0.00020115,2]
[401354350,1768151448067,-961.92726002,0.00020274,2]
[401354352,1768151448077,-6500.0,0.00020274,2]
[401354354,1768151448087,-2048.49,0.000204,2]
[401354356,1768151448096,-14210.64589662,0.00020487,2]
[401354358,1768151448107,-8476.65007153,0.00020609,2]
[401354359,1768151448116,-715.1,0.00020778,2]
[401354360,1768151448125,-7000.0,0.00020822,2]
[401354361,1768151448135,-2048.49,0.000209,2]
[401354362,1768151448144,-3000.0,0.00021,2]
[401354363,1768151448153,-3000.0,0.0002101,2]
[401354364,1768151448163,-3000.0,0.0002102,2]
[401354365,1768151448176,-643.73891296,0.00021029,12]
[401354366,1768151448185,-3000.0,0.0002103,2]
[401354367,1768151448194,-3000.0,0.0002104,2]
[401354368,1768151448204,-3000.0,0.0002105,2]
[401354369,1768151448214,-3000.0,0.0002106,2]
[401354370,1768151448224,-3000.0,0.0002107,2]
[401354371,1768151448233,-3000.0,0.0002108,2]
[401354372,1768151448245,-3000.0,0.0002109,2]
[401354373,1768151448255,-3000.0,0.000211,2]
[401354374,1768151448265,-3000.0,0.0002111,2]
[401354375,1768151448275,-3000.0,0.0002112,2]
[401354376,1768151448284,-3000.0,0.0002113,2]
[401354377,1768151448293,-3000.0,0.0002114,2]
[401354378,1768151448303,-3000.0,0.0002115,2]
[401354379,1768151448313,-3000.0,0.0002116,2]
[401354380,1768151448323,-3000.0,0.0002117,2]
[401354381,1768151448332,-3000.0,0.0002118,2]
[401354382,1768151448342,-3000.0,0.0002119,2]
[401354383,1768151448352,-3000.0,0.000212,2]
[401354384,1768151448362,-3000.0,0.0002121,2]
[401354386,1768151448372,-3000.0,0.0002122,2]
[401354388,1768151448382,-3000.0,0.0002123,2]
[401354390,1768151448391,-3000.0,0.0002124,2]
[401354392,1768151448401,-3000.0,0.0002125,2]
[401354393,1768151448410,-3000.0,0.0002126,2]
[401354396,1768151448419,-3000.0,0.0002127,2]
[401354398,1768151448429,-3000.0,0.0002128,2]
[401354399,1768151448439,-3000.0,0.0002129,2]
[401354401,1768151448449,-3000.0,0.000213,2]
[401354403,1768151448458,-3180.59,0.000213,2]
[401354405,1768151448468,-3000.0,0.0002131,2]
[401354407,1768151448477,-3000.0,0.0002132,2]
[401354409,1768151448487,-3000.0,0.0002133,2]
[401354411,1768151448497,-3000.0,0.0002134,2]
[401354413,1768151448507,-3000.0,0.0002135,2]
[401354415,1768151448517,-3000.0,0.0002136,2]
[401354417,1768151448527,-3567.54835774,0.0002137,2]
[401354419,1768151448537,-3000.0,0.0002137,2]
[401354421,1768151448546,-3000.0,0.0002138,2]
[401354424,1768151448556,-3000.0,0.0002139,2]
[401354425,1768151448566,-3000.0,0.000214,2]
[401354427,1768151448575,-2048.49,0.000214,2]
[401354429,1768151448585,-3000.0,0.0002141,2]
[401354431,1768151448595,-3000.0,0.0002142,2]
[401354433,1768151448604,-5085.760285,0.0002143,2]
[401354435,1768151448613,-1000.0,0.00021593,10]
[401354437,1768151448623,-1000.0,0.00021593,10]
[401354439,1768151448632,-1000.0,0.00021593,10]
[401354441,1768151448641,-715.0,0.00021593,10]
[401354443,1768151448652,-159.57,0.000218,2]
[401354445,1768151448661,-2048.49,0.000219,2]
[401354447,1768151448670,-770.339112,0.00021918,2]
[401354449,1768151448679,-883.85875332,0.00022115,2]
[401354451,1768151448688,-715.1,0.00022253,2]
[401354453,1768151448698,-171.46,0.0002231,2]
[401354455,1768151448707,-2048.49,0.000224,2]
[401354457,1768151448716,-643.73891296,0.000224,13]
[401354459,1768151448725,-300.0,0.00022466,2]
[401354461,1768151448735,-8476.65007153,0.00022959,2]
[401354463,1768151448744,-31199.11,0.00023,2]
[401354465,1768151448753,-2048.49,0.00023,2]
[401354467,1768151448762,-450.0,0.00023014,2]
[401354469,1768151448772,-5290.76752154,0.00023153,2]
[401354471,1768151448781,-171.46,0.0002322,2]
[401354473,1768151448790,-151.0,0.00023336,2]
[401354475,1768151448799,-151.0,0.00023336,2]
[401354477,1768151448808,-151.0,0.00023336,2]
[401354479,1768151448817,-151.0,0.00023336,2]
[401354481,1768151448826,-151.0,0.00023336,2]
[401354483,1768151448835,-151.0,0.00023336,2]
[401354485,1768151448844,-151.0,0.00023336,2]
[401354487,1768151448853,-151.0,0.00023336,2]
[401354488,1768151448862,-151.0,0.00023336,2]
[401354490,1768151448871,-151.0,0.00023336,2]
[401354492,1768151448880,-151.0,0.00023336,2]
[401354494,1768151448889,-151.0,0.00023336,2]
[401354496,1768151448898,-151.0,0.00023336,2]
[401354498,1768151448908,-151.0,0.00023336,2]
[401354500,1768151448917,-151.0,0.00023336,2]
[401354502,1768151448926,-151.0,0.00023336,2]
[401354504,1768151448935,-151.0,0.00023336,2]
[401354506,1768151448944,-151.0,0.00023336,2]
[401354508,1768151448954,-151.0,0.00023336,2]
[401354509,1768151448963,-151.0,0.00023336,2]
[401354511,1768151448972,-151.0,0.00023336,2]
[401354513,1768151448981,-151.0,0.00023336,2]
[401354515,1768151448991,-151.0,0.00023336,2]
[401354518,1768151449002,-151.0,0.00023336,2]
[401354520,1768151449011,-151.0,0.00023336,2]
[401354522,1768151449020,-151.0,0.00023336,2]
[401354523,1768151449029,-151.0,0.00023336,2]
[401354525,1768151449039,-151.0,0.00023336,2]
[401354528,1768151449048,-151.0,0.00023336,2]
[401354529,1768151449058,-151.0,0.00023336,2]
[401354531,1768151449066,-151.0,0.00023336,2]
[401354533,1768151449075,-151.0,0.00023336,2]
[401354535,1768151449085,-151.0,0.00023336,2]
[401354537,1768151449094,-151.0,0.00023336,2]
[401354539,1768151449102,-151.0,0.00023336,2]
[401354541,1768151449112,-151.0,0.00023336,2]
[401354543,1768151449121,-151.0,0.00023336,2]
[401354545,1768151449130,-151.0,0.00023336,2]
[401354547,1768151449139,-151.0,0.00023336,2]
[401354549,1768151449148,-151.0,0.00023336,2]
[401354551,1768151449157,-151.0,0.00023336,2]
[401354553,1768151449166,-156.587,0.00023336,2]
[401354555,1768151449178,-152.09143049,0.00023336,2]
[401354557,1768151449187,-30000.0,0.00023336,2]
[401354559,1768151449196,-2048.49,0.000235,2]
[401354561,1768151449205,-600.0,0.00023562,2]
[401354563,1768151449215,-522.92,0.000236,2]
[401354565,1768151449223,-715.1,0.00023727,2]
[401354567,1768151449232,-1000.0,0.00023752,10]
[401354569,1768151449241,-1000.0,0.00023752,10]
[401354571,1768151449253,-1000.0,0.00023752,10]
[401354573,1768151449262,-643.73891296,0.00023771,15]
[401354575,1768151449271,-30307.20348016,0.00023884,2]
[401354577,1768151449280,-3180.59,0.000239,14]
[401354579,1768151449289,-159.57,0.000239,2]
[401354581,1768151449298,-2048.49,0.00024,2]
[401354583,1768151449307,-733.98308473,0.0002411,2]
[401354585,1768151449317,-954.25458323,0.00024115,2]
[401354586,1768151449327,-2048.49,0.000245,2]
[401354588,1768151449336,-14210.64589662,0.00024629,2]
[401354590,1768151449345,-155.5739919,0.0002471,5]
[401354592,1768151449354,-625374.967992,0.000249,2]
[401354594,1768151449363,-2048.49,0.00025,2]
[401354596,1768151449374,-1000.74,0.000251,7]
[401354598,1768151449383,-643.73891296,0.00025142,16]
[401354600,1768151449392,-715.1,0.00025202,2]
[401354602,1768151449404,-250.0,0.00025205,2]
[401354604,1768151449415,-8476.65007153,0.00025308,2]
[401354606,1768151449425,-770.339112,0.00025342,2]
[401354608,1768151449435,-2048.49,0.000255,2]
[401354610,1768151449445,-301.77529652,0.00025507,17]
[401354612,1768151449455,-350.0,0.00025753,2]
[401354614,1768151449464,-2263.25436862,0.0002587,2]
[401354616,1768151449473,-159.57,0.000259,2]